[Event "*** Titled Tuesday Blitz"]
[Site "Chess.com"]
[Date "2021.03.16"]
[Round "3"]
[White "KazakhFighter04"]
[Black "mishanick"]
[Result "1/2-1/2"]
[WhiteElo "2761"]
[BlackElo "3012"]
[TimeControl "180+1"]
[EndTime "10:30:56 PDT"]
[Termination "Game drawn - insufficient material"]

1. e4 {[%clk 0:03:00.4]} 1... c5 {[%clk 0:03:00.2]} 2. Nf3 {[%clk 0:03:00.6]}
2... d6 {[%clk 0:03:00.9]} 3. d4 {[%clk 0:03:01]} 3... cxd4 {[%clk 0:03:01.8]}
4. Nxd4 {[%clk 0:03:01.9]} 4... Nf6 {[%clk 0:03:01.2]} 5. Nc3 {[%clk 0:03:02.4]}
5... a6 {[%clk 0:03:01.8]} 6. Be2 {[%clk 0:03:02.1]} 6... e5 {[%clk 0:03:02.2]}
7. Nf3 {[%clk 0:03:02.1]} 7... Be7 {[%clk 0:03:01.4]} 8. Bg5 {[%clk 0:03:02.6]}
8... Nbd7 {[%clk 0:03:02]} 9. O-O {[%clk 0:02:58.5]} 9... b5 {[%clk 0:02:58.2]}
10. Bxf6 {[%clk 0:02:55.2]} 10... Nxf6 {[%clk 0:02:58]} 11. a4 {[%clk
0:02:55.8]} 11... b4 {[%clk 0:02:54.3]} 12. Nd5 {[%clk 0:02:56]} 12... Nxe4
{[%clk 0:02:45.6]} 13. Nxb4 {[%clk 0:02:49.8]} 13... Bb7 {[%clk 0:02:35.8]} 14.
Bc4 {[%clk 0:02:47.6]} 14... Nf6 {[%clk 0:02:22.9]} 15. Nd5 {[%clk 0:02:45.9]}
15... O-O {[%clk 0:02:20.9]} 16. Nxf6+ {[%clk 0:02:42.7]} 16... Bxf6 {[%clk
0:02:21.4]} 17. Bd5 {[%clk 0:02:43.6]} 17... Rb8 {[%clk 0:02:16.8]} 18. Rb1
{[%clk 0:02:36.1]} 18... e4 {[%clk 0:02:12.4]} 19. Bxb7 {[%clk 0:02:32.9]} 19...
Rxb7 {[%clk 0:02:11.8]} 20. Qd5 {[%clk 0:02:28.8]} 20... Rb4 {[%clk 0:02:01.4]}
21. c3 {[%clk 0:01:59.7]} 21... Rxa4 {[%clk 0:02:01.3]} 22. Nd2 {[%clk
0:01:59.2]} 22... e3 {[%clk 0:01:51.1]} 23. fxe3 {[%clk 0:02:00.1]} 23... Rh4
{[%clk 0:01:37.4]} 24. Nf3 {[%clk 0:01:54.3]} 24... Rg4 {[%clk 0:01:35]} 25.
Rfd1 {[%clk 0:01:45.2]} 25... Qb6 {[%clk 0:01:32.3]} 26. Rd3 {[%clk 0:01:45.1]}
26... Rd8 {[%clk 0:01:28.4]} 27. b4 {[%clk 0:01:42.4]} 27... h6 {[%clk
0:01:22.1]} 28. Kh1 {[%clk 0:01:35.1]} 28... Qc7 {[%clk 0:01:18.6]} 29. h3
{[%clk 0:01:25.2]} 29... Rc4 {[%clk 0:01:14.1]} 30. b5 {[%clk 0:01:19.5]} 30...
axb5 {[%clk 0:01:04.9]} 31. Rxb5 {[%clk 0:01:19.1]} 31... Rxc3 {[%clk
0:00:48.2]} 32. Rxc3 {[%clk 0:01:19.2]} 32... Qxc3 {[%clk 0:00:46.5]} 33. Rb7
{[%clk 0:01:20.1]} 33... Qa1+ {[%clk 0:00:31.6]} 34. Kh2 {[%clk 0:01:18.5]}
34... Be5+ {[%clk 0:00:32.1]} 35. Nxe5 {[%clk 0:01:18.3]} 35... Qxe5+ {[%clk
0:00:31.4]} 36. Qxe5 {[%clk 0:01:18.7]} 36... dxe5 {[%clk 0:00:32.3]} 37. Re7
{[%clk 0:01:19.4]} 37... f6 {[%clk 0:00:27.6]} 38. Kg3 {[%clk 0:01:19.5]} 38...
h5 {[%clk 0:00:25.5]} 39. h4 {[%clk 0:01:19.7]} 39... Kh7 {[%clk 0:00:24]} 40.
Kf3 {[%clk 0:01:19.9]} 40... Kg6 {[%clk 0:00:24.4]} 41. g3 {[%clk 0:01:20.2]}
41... Ra8 {[%clk 0:00:24.5]} 42. e4 {[%clk 0:01:17.5]} 42... Ra3+ {[%clk
0:00:24.5]} 43. Kf2 {[%clk 0:01:17.6]} 43... Rb3 {[%clk 0:00:25.1]} 44. Ra7
{[%clk 0:01:17.1]} 44... Rc3 {[%clk 0:00:24.7]} 45. Rb7 {[%clk 0:01:16.3]} 45...
Kh6 {[%clk 0:00:24.7]} 46. Rf7 {[%clk 0:01:15.3]} 46... Rc8 {[%clk 0:00:24.3]}
47. Kf3 {[%clk 0:01:14.7]} 47... Rc1 {[%clk 0:00:24.3]} 48. Kf2 {[%clk
0:01:12.4]} 48... Rc6 {[%clk 0:00:22.4]} 49. Kf3 {[%clk 0:01:11.3]} 49... g6
{[%clk 0:00:22.2]} 50. Re7 {[%clk 0:01:09.9]} 50... Rc3+ {[%clk 0:00:21.1]} 51.
Kf2 {[%clk 0:01:09.3]} 51... g5 {[%clk 0:00:21.3]} 52. hxg5+ {[%clk 0:01:00.6]}
52... Kxg5 {[%clk 0:00:22.2]} 53. Rg7+ {[%clk 0:00:59.7]} 53... Kh6 {[%clk
0:00:22.5]} 54. Ra7 {[%clk 0:00:56.2]} 54... Kg6 {[%clk 0:00:22.5]} 55. Rb7
{[%clk 0:00:55.6]} 55... Ra3 {[%clk 0:00:20.7]} 56. Rc7 {[%clk 0:00:54.8]} 56...
Kh6 {[%clk 0:00:21.1]} 57. Rb7 {[%clk 0:00:54.5]} 57... Kg5 {[%clk 0:00:19.6]}
58. Rg7+ {[%clk 0:00:54.2]} 58... Kh6 {[%clk 0:00:20]} 59. Rb7 {[%clk
0:00:55.1]} 59... Ra8 {[%clk 0:00:19.6]} 60. Kf3 {[%clk 0:00:54.5]} 60... Rg8
{[%clk 0:00:19.4]} 61. Rc7 {[%clk 0:00:52.4]} 61... Kg5 {[%clk 0:00:19.3]} 62.
Ra7 {[%clk 0:00:52.9]} 62... Rg6 {[%clk 0:00:19.2]} 63. Rh7 {[%clk 0:00:49.9]}
63... Rg8 {[%clk 0:00:16.3]} 64. Ra7 {[%clk 0:00:50.5]} 64... Kg6 {[%clk
0:00:16.2]} 65. Rb7 {[%clk 0:00:49.5]} 65... Rf8 {[%clk 0:00:13.3]} 66. Ra7
{[%clk 0:00:49.5]} 66... f5 {[%clk 0:00:12.3]} 67. exf5+ {[%clk 0:00:45.7]}
67... Kxf5 {[%clk 0:00:13.2]} 68. Ke3 {[%clk 0:00:32.4]} 68... Rg8 {[%clk
0:00:08.7]} 69. Kf3 {[%clk 0:00:21.2]} 69... Rf8 {[%clk 0:00:08.3]} 70. Ke3
{[%clk 0:00:21.1]} 70... Rf6 {[%clk 0:00:08.7]} 71. Rg7 {[%clk 0:00:19.6]} 71...
Rg6 {[%clk 0:00:07.8]} 72. Rf7+ {[%clk 0:00:15.4]} 72... Kg4 {[%clk 0:00:07.9]}
73. Kf2 {[%clk 0:00:13.6]} 73... Rg5 {[%clk 0:00:07.9]} 74. Ra7 {[%clk
0:00:11.7]} 74... Kh3 {[%clk 0:00:06.5]} 75. Ra3 {[%clk 0:00:09.7]} 75... Rf5+
{[%clk 0:00:06.4]} 76. Kg1 {[%clk 0:00:10]} 76... e4 {[%clk 0:00:04.6]} 77. Re3
{[%clk 0:00:09.9]} 77... Re5 {[%clk 0:00:04.1]} 78. Kf2 {[%clk 0:00:10.2]} 78...
Kg4 {[%clk 0:00:04.3]} 79. Kg2 {[%clk 0:00:10.2]} 79... Kf5 {[%clk 0:00:03.1]}
80. Kh3 {[%clk 0:00:10.7]} 80... Rd5 {[%clk 0:00:03.6]} 81. Kh4 {[%clk
0:00:10.7]} 81... Rd1 {[%clk 0:00:04.3]} 82. Kh3 {[%clk 0:00:08.5]} 82... Rd3
{[%clk 0:00:04.5]} 83. Re1 {[%clk 0:00:08]} 83... e3 {[%clk 0:00:05.1]} 84. Kh4
{[%clk 0:00:07.6]} 84... Ke4 {[%clk 0:00:05.1]} 85. Kxh5 {[%clk 0:00:07.4]}
85... Rd8 {[%clk 0:00:03.5]} 86. g4 {[%clk 0:00:05.1]} 86... Rh8+ {[%clk
0:00:04.1]} 87. Kg6 {[%clk 0:00:05.6]} 87... Rg8+ {[%clk 0:00:03.6]} 88. Kh5
{[%clk 0:00:06]} 88... Kf4 {[%clk 0:00:04.1]} 89. Rf1+ {[%clk 0:00:05.4]} 89...
Kg3 {[%clk 0:00:04.3]} 90. g5 {[%clk 0:00:06]} 90... Rh8+ {[%clk 0:00:02.7]} 91.
Kg6 {[%clk 0:00:06]} 91... Rh2 {[%clk 0:00:02.7]} 92. Kg7 {[%clk 0:00:05.5]}
92... Rf2 {[%clk 0:00:02.4]} 93. Re1 {[%clk 0:00:05.5]} 93... Kf4 {[%clk
0:00:02.7]} 94. g6 {[%clk 0:00:05.9]} 94... Rg2 {[%clk 0:00:03.3]} 95. Kh7
{[%clk 0:00:05.8]} 95... e2 {[%clk 0:00:03.7]} 96. g7 {[%clk 0:00:05.4]} 96...
Rh2+ {[%clk 0:00:04.4]} 97. Kg8 {[%clk 0:00:05.7]} 97... Ke3 {[%clk 0:00:05.1]}
98. Rxe2+ {[%clk 0:00:05]} 98... Rxe2 {[%clk 0:00:05.2]} 99. Kf8 {[%clk
0:00:05.9]} 99... Rf2+ {[%clk 0:00:05.7]} 100. Ke7 {[%clk 0:00:06.3]} 100... Rg2
{[%clk 0:00:06.6]} 101. Kf7 {[%clk 0:00:07.2]} 101... Kf4 {[%clk 0:00:07.3]}
102. g8=Q {[%clk 0:00:07.4]} 102... Rxg8 {[%clk 0:00:08.2]} 103. Kxg8 {[%clk
0:00:08.3]} 1/2-1/2

[Event "*** Titled Tuesday Blitz"]
[Site "Chess.com"]
[Date "2021.03.16"]
[Round "4"]
[White "MagzyPotato"]
[Black "Susal_De_Silva"]
[Result "0-1"]
[WhiteElo "2365"]
[BlackElo "2634"]
[TimeControl "180+1"]
[EndTime "10:32:55 PDT"]
[Termination "Susal_De_Silva won by resignation"]

1. d4 {[%clk 0:03:00.9]} 1... Nf6 {[%clk 0:03:00.2]} 2. c3 {[%clk 0:03:01.4]}
2... e6 {[%clk 0:03:00]} 3. Nf3 {[%clk 0:03:01.9]} 3... d5 {[%clk 0:03:00.2]} 4.
Nbd2 {[%clk 0:03:02.3]} 4... b6 {[%clk 0:03:00]} 5. e3 {[%clk 0:03:02.4]} 5...
Bb7 {[%clk 0:03:00.6]} 6. Bd3 {[%clk 0:03:02.9]} 6... Bd6 {[%clk 0:03:00.6]} 7.
O-O {[%clk 0:03:03.4]} 7... c5 {[%clk 0:03:01.2]} 8. Ne5 {[%clk 0:03:03.6]} 8...
O-O {[%clk 0:03:01.6]} 9. f4 {[%clk 0:03:04]} 9... Nc6 {[%clk 0:03:02.3]} 10.
Ndf3 {[%clk 0:03:04.4]} 10... Ne7 {[%clk 0:03:02.7]} 11. Bd2 {[%clk 0:02:55.1]}
11... c4 {[%clk 0:02:59.3]} 12. Bc2 {[%clk 0:02:53.9]} 12... b5 {[%clk
0:02:59.9]} 13. Be1 {[%clk 0:02:32]} 13... Ne4 {[%clk 0:02:58.3]} 14. Bh4 {[%clk
0:02:26.5]} 14... f6 {[%clk 0:02:56.5]} 15. Ng4 {[%clk 0:02:25.1]} 15... Nf5
{[%clk 0:02:56.6]} 16. Bf2 {[%clk 0:02:17.3]} 16... h5 {[%clk 0:02:54.9]} 17.
Bxe4 {[%clk 0:02:14.8]} 17... dxe4 {[%clk 0:02:53.9]} 0-1

[Event "*** Titled Tuesday Blitz"]
[Site "Chess.com"]
[Date "2021.03.16"]
[Round "4"]
[White "DanilovVladimir"]
[Black "Olga_Zhuravleva"]
[Result "1-0"]
[WhiteElo "2438"]
[BlackElo "2258"]
[TimeControl "180+1"]
[EndTime "10:32:58 PDT"]
[Termination "DanilovVladimir won by resignation"]

1. d4 {[%clk 0:03:00.9]} 1... g6 {[%clk 0:02:57]} 2. e4 {[%clk 0:03:00.2]} 2...
Bg7 {[%clk 0:02:56.5]} 3. Nc3 {[%clk 0:03:00.1]} 3... d6 {[%clk 0:02:55.8]} 4.
Bg5 {[%clk 0:02:59.1]} 4... Nd7 {[%clk 0:02:53.7]} 5. Qd2 {[%clk 0:02:58.9]}
5... c6 {[%clk 0:02:53.2]} 6. Nf3 {[%clk 0:02:54.8]} 6... Qa5 {[%clk 0:02:49.1]}
7. Bd3 {[%clk 0:02:48.5]} 7... b5 {[%clk 0:02:44.8]} 8. O-O {[%clk 0:02:43.7]}
8... Ngf6 {[%clk 0:02:41.4]} 9. e5 {[%clk 0:02:32.9]} 9... dxe5 {[%clk
0:02:31.2]} 10. dxe5 {[%clk 0:02:32.7]} 10... Nd5 {[%clk 0:02:24.7]} 11. Nxd5
{[%clk 0:02:30.9]} 11... cxd5 {[%clk 0:02:24.2]} 12. Qxa5 {[%clk 0:02:29.7]} 1-0

[Event "*** Titled Tuesday Blitz"]
[Site "Chess.com"]
[Date "2021.03.16"]
[Round "4"]
[White "Skatchkov_V"]
[Black "Aslanov_Umid"]
[Result "1-0"]
[WhiteElo "2609"]
[BlackElo "2390"]
[TimeControl "180+1"]
[EndTime "10:33:06 PDT"]
[Termination "Skatchkov_V won by resignation"]

1. d4 {[%clk 0:02:59.8]} 1... d5 {[%clk 0:03:00.2]} 2. c4 {[%clk 0:02:59.9]}
2... e6 {[%clk 0:03:00.9]} 3. Nf3 {[%clk 0:02:59.9]} 3... Nf6 {[%clk 0:03:00.3]}
4. Nc3 {[%clk 0:02:59.6]} 4... c6 {[%clk 0:03:00.5]} 5. Qc2 {[%clk 0:02:57.3]}
5... Nbd7 {[%clk 0:02:57.9]} 6. e3 {[%clk 0:02:57.6]} 6... b6 {[%clk 0:02:57.8]}
7. b3 {[%clk 0:02:55.9]} 7... Bd6 {[%clk 0:02:56.2]} 8. Bd3 {[%clk 0:02:56.3]}
8... O-O {[%clk 0:02:54.5]} 9. Bb2 {[%clk 0:02:56.2]} 9... Bb7 {[%clk
0:02:53.5]} 10. g4 {[%clk 0:02:53]} 10... dxc4 {[%clk 0:02:49.1]} 11. bxc4
{[%clk 0:02:51.9]} 11... c5 {[%clk 0:02:49.1]} 12. d5 {[%clk 0:02:51.7]} 12...
exd5 {[%clk 0:02:47.9]} 13. cxd5 {[%clk 0:02:52]} 13... Nxd5 {[%clk 0:02:40.5]}
14. Bxh7+ {[%clk 0:02:51.6]} 14... Kh8 {[%clk 0:02:40.4]} 15. Be4 {[%clk
0:02:51.9]} 15... N7f6 {[%clk 0:02:32.9]} 16. Nxd5 {[%clk 0:02:50.2]} 16... Nxd5
{[%clk 0:02:32.9]} 17. Rd1 {[%clk 0:02:47.3]} 17... Nb4 {[%clk 0:02:31.6]} 18.
Qc3 {[%clk 0:02:47.4]} 1-0

[Event "*** Titled Tuesday Blitz"]
[Site "Chess.com"]
[Date "2021.03.16"]
[Round "4"]
[White "Politov_Pavel"]
[Black "politeplayer"]
[Result "0-1"]
[WhiteElo "2404"]
[BlackElo "2235"]
[TimeControl "180+1"]
[EndTime "10:33:24 PDT"]
[Termination "politeplayer won by checkmate"]

1. d4 {[%clk 0:03:00.9]} 1... Nf6 {[%clk 0:02:59.4]} 2. Nc3 {[%clk 0:03:00.9]}
2... d5 {[%clk 0:02:58.1]} 3. Bg5 {[%clk 0:03:00.7]} 3... Nbd7 {[%clk 0:02:58]}
4. Nf3 {[%clk 0:02:58.8]} 4... e6 {[%clk 0:02:58]} 5. e4 {[%clk 0:02:59]} 5...
dxe4 {[%clk 0:02:57.7]} 6. Nxe4 {[%clk 0:02:59.4]} 6... c5 {[%clk 0:02:57.4]} 7.
dxc5 {[%clk 0:02:51.9]} 7... Qc7 {[%clk 0:02:28.3]} 8. Nd6+ {[%clk 0:02:42.7]}
8... Bxd6 {[%clk 0:02:24.4]} 9. cxd6 {[%clk 0:02:43.6]} 9... Qb6 {[%clk
0:02:19]} 10. Rb1 {[%clk 0:02:17.2]} 10... Ne4 {[%clk 0:02:15.7]} 11. Bf4 {[%clk
0:02:07.1]} 11... Qxf2# {[%clk 0:02:13.7]} 0-1

[Event "*** Titled Tuesday Blitz"]
[Site "Chess.com"]
[Date "2021.03.16"]
[Round "4"]
[White "Bacyanide"]
[Black "cukin84"]
[Result "1-0"]
[WhiteElo "2413"]
[BlackElo "2112"]
[TimeControl "180+1"]
[EndTime "10:33:38 PDT"]
[Termination "Bacyanide won by checkmate"]

1. d4 {[%clk 0:02:59.9]} 1... f5 {[%clk 0:02:59.5]} 2. c4 {[%clk 0:02:58.4]}
2... Nf6 {[%clk 0:02:59.5]} 3. Nc3 {[%clk 0:02:59.1]} 3... g6 {[%clk 0:02:59.8]}
4. h4 {[%clk 0:02:59]} 4... h6 {[%clk 0:02:57.3]} 5. h5 {[%clk 0:02:55.7]} 5...
g5 {[%clk 0:02:57.1]} 6. Qc2 {[%clk 0:02:53.3]} 6... d6 {[%clk 0:02:56.7]} 7. e4
{[%clk 0:02:53]} 7... f4 {[%clk 0:02:48]} 8. e5 {[%clk 0:02:51.7]} 8... Ng4
{[%clk 0:02:43]} 9. Qg6+ {[%clk 0:02:45.7]} 9... Kd7 {[%clk 0:02:40.7]} 10. e6+
{[%clk 0:02:45]} 10... Kc6 {[%clk 0:02:38.8]} 11. Qf5 {[%clk 0:02:23.2]} 11...
Ne5 {[%clk 0:02:21]} 12. Qe4+ {[%clk 0:02:10.9]} 12... d5 {[%clk 0:02:15.5]} 13.
cxd5+ {[%clk 0:02:09.4]} 13... Kb6 {[%clk 0:02:14.7]} 14. Na4+ {[%clk
0:02:04.7]} 14... Ka5 {[%clk 0:02:12.1]} 15. Bd2+ {[%clk 0:02:05]} 15... Kxa4
{[%clk 0:02:11.8]} 16. dxe5# {[%clk 0:02:05.4]} 1-0

[Event "*** Titled Tuesday Blitz"]
[Site "Chess.com"]
[Date "2021.03.16"]
[Round "4"]
[White "mbachez"]
[Black "kubal123"]
[Result "1-0"]
[WhiteElo "2481"]
[BlackElo "2265"]
[TimeControl "180+1"]
[EndTime "10:34:13 PDT"]
[Termination "mbachez won by resignation"]

1. e4 {[%clk 0:03:00.9]} 1... c6 {[%clk 0:02:59.7]} 2. d4 {[%clk 0:02:57.9]}
2... d5 {[%clk 0:03:00.1]} 3. Nd2 {[%clk 0:02:55.6]} 3... dxe4 {[%clk 0:03:00]}
4. Nxe4 {[%clk 0:02:55.5]} 4... Nf6 {[%clk 0:03:00.7]} 5. Nxf6+ {[%clk
0:02:53.9]} 5... exf6 {[%clk 0:03:01.6]} 6. Bc4 {[%clk 0:02:53.6]} 6... Bd6
{[%clk 0:03:02.1]} 7. Be3 {[%clk 0:02:48]} 7... O-O {[%clk 0:03:00.6]} 8. Qh5
{[%clk 0:02:46.6]} 8... Re8 {[%clk 0:02:37.2]} 9. Bxf7+ {[%clk 0:02:44.4]} 9...
Kf8 {[%clk 0:02:31.9]} 10. Bxe8 {[%clk 0:02:42]} 10... Qxe8 {[%clk 0:02:32.8]}
11. Qxe8+ {[%clk 0:02:41.4]} 11... Kxe8 {[%clk 0:02:33.7]} 12. Ne2 {[%clk
0:02:41.1]} 12... Bf5 {[%clk 0:02:32.1]} 13. O-O-O {[%clk 0:02:40]} 13... Nd7
{[%clk 0:02:32]} 14. Bf4 {[%clk 0:02:39.1]} 14... Bxf4+ {[%clk 0:02:29.9]} 15.
Nxf4 {[%clk 0:02:38.7]} 15... Kf7 {[%clk 0:02:28.1]} 16. Rhe1 {[%clk 0:02:38.2]}
16... Rd8 {[%clk 0:02:26.4]} 17. f3 {[%clk 0:02:36.4]} 17... Nb6 {[%clk
0:02:22.9]} 18. b3 {[%clk 0:02:35.5]} 18... Nd5 {[%clk 0:02:21.7]} 19. Nxd5
{[%clk 0:02:34.6]} 19... cxd5 {[%clk 0:02:21.7]} 20. Kb2 {[%clk 0:02:34.6]}
20... Rc8 {[%clk 0:02:21.4]} 21. c3 {[%clk 0:02:34.3]} 21... b5 {[%clk
0:02:20.1]} 22. Rd2 {[%clk 0:02:34.2]} 22... a6 {[%clk 0:02:20.3]} 23. Rde2
{[%clk 0:02:33.6]} 23... Rc7 {[%clk 0:02:19.6]} 24. g4 {[%clk 0:02:28.4]} 24...
Bc8 {[%clk 0:02:17.2]} 25. Re8 {[%clk 0:02:26]} 25... Kg6 {[%clk 0:02:12]} 26.
R1e7 {[%clk 0:02:24.1]} 26... Rc6 {[%clk 0:02:08.3]} 27. Rg8 {[%clk 0:02:19.1]}
1-0

[Event "*** Titled Tuesday Blitz"]
[Site "Chess.com"]
[Date "2021.03.16"]
[Round "4"]
[White "lukazz029"]
[Black "nrvisakh"]
[Result "0-1"]
[WhiteElo "2225"]
[BlackElo "2792"]
[TimeControl "180+1"]
[EndTime "10:35:19 PDT"]
[Termination "nrvisakh won by checkmate"]

1. e4 {[%clk 0:03:00.9]} 1... c5 {[%clk 0:02:59.4]} 2. Nf3 {[%clk 0:02:42.8]}
2... Nc6 {[%clk 0:02:59.9]} 3. d4 {[%clk 0:02:42.3]} 3... cxd4 {[%clk
0:03:00.8]} 4. Nxd4 {[%clk 0:02:42.3]} 4... Nf6 {[%clk 0:03:00.5]} 5. Nc3 {[%clk
0:02:41.4]} 5... e5 {[%clk 0:03:01.1]} 6. Ndb5 {[%clk 0:02:40.4]} 6... d6 {[%clk
0:03:01.4]} 7. Nd5 {[%clk 0:02:40.6]} 7... Nxd5 {[%clk 0:03:01.2]} 8. exd5
{[%clk 0:02:41.5]} 8... Nb8 {[%clk 0:03:01.7]} 9. c4 {[%clk 0:02:41.4]} 9... Be7
{[%clk 0:03:01.4]} 10. Qa4 {[%clk 0:02:40.5]} 10... O-O {[%clk 0:03:00.7]} 11.
Be3 {[%clk 0:02:39.5]} 11... a6 {[%clk 0:02:57.3]} 12. Nc3 {[%clk 0:02:37.9]}
12... f5 {[%clk 0:02:55.4]} 13. f4 {[%clk 0:02:24.9]} 13... exf4 {[%clk
0:02:52.9]} 14. Bxf4 {[%clk 0:02:24.6]} 14... Bf6 {[%clk 0:02:45.1]} 15. Be2
{[%clk 0:02:22.4]} 15... Nd7 {[%clk 0:02:44.3]} 16. O-O {[%clk 0:02:21.6]} 16...
Qb6+ {[%clk 0:02:44.1]} 17. Kh1 {[%clk 0:02:18.8]} 17... Qxb2 {[%clk 0:02:43.8]}
18. Bxd6 {[%clk 0:01:47.6]} 18... Re8 {[%clk 0:02:33.1]} 19. Bd3 {[%clk
0:01:40.6]} 19... Qxc3 {[%clk 0:02:26.6]} 20. Bxf5 {[%clk 0:01:39.8]} 20... b5
{[%clk 0:02:21.6]} 21. cxb5 {[%clk 0:01:35.9]} 21... Nb6 {[%clk 0:02:21.4]} 22.
Qg4 {[%clk 0:01:29.3]} 22... Bxf5 {[%clk 0:02:20.8]} 23. Qxf5 {[%clk 0:01:29.1]}
23... axb5 {[%clk 0:02:18.9]} 24. Rac1 {[%clk 0:01:27.2]} 24... Qd2 {[%clk
0:02:13]} 25. Bc7 {[%clk 0:01:25]} 25... Nxd5 {[%clk 0:02:01.1]} 26. Rcd1 {[%clk
0:01:22.7]} 26... Ne3 {[%clk 0:01:55.1]} 27. Qxf6 {[%clk 0:01:14.1]} 27... Qxg2#
{[%clk 0:01:52.4]} 0-1

[Event "*** Titled Tuesday Blitz"]
[Site "Chess.com"]
[Date "2021.03.16"]
[Round "4"]
[White "SimplyDevina"]
[Black "Dave_ChessMate"]
[Result "0-1"]
[WhiteElo "2197"]
[BlackElo "2415"]
[TimeControl "180+1"]
[EndTime "10:36:01 PDT"]
[Termination "Dave_ChessMate won by resignation"]

1. d4 {[%clk 0:03:00.9]} 1... Nf6 {[%clk 0:02:59.2]} 2. c4 {[%clk 0:02:56]} 2...
e6 {[%clk 0:02:59.1]} 3. Nc3 {[%clk 0:02:56]} 3... Bb4 {[%clk 0:02:58.5]} 4. e3
{[%clk 0:02:47.8]} 4... O-O {[%clk 0:02:58.3]} 5. Bd3 {[%clk 0:02:42.9]} 5... c5
{[%clk 0:02:57.2]} 6. a3 {[%clk 0:02:39.9]} 6... Bxc3+ {[%clk 0:02:57.2]} 7.
bxc3 {[%clk 0:02:40.8]} 7... d6 {[%clk 0:02:57.9]} 8. Nf3 {[%clk 0:02:40]} 8...
Nc6 {[%clk 0:02:58.3]} 9. O-O {[%clk 0:02:40.1]} 9... b6 {[%clk 0:02:58.8]} 10.
e4 {[%clk 0:02:39.2]} 10... e5 {[%clk 0:02:57.6]} 11. Be3 {[%clk 0:01:51.1]}
11... Ba6 {[%clk 0:02:56.8]} 12. Qe2 {[%clk 0:01:44]} 12... Rc8 {[%clk
0:02:55.9]} 13. Rfd1 {[%clk 0:01:38.1]} 13... Re8 {[%clk 0:02:54.6]} 14. d5
{[%clk 0:01:32.7]} 14... Na5 {[%clk 0:02:54.3]} 15. Nh4 {[%clk 0:01:33.1]} 15...
Qd7 {[%clk 0:02:50.1]} 16. Nf5 {[%clk 0:01:29.6]} 16... g6 {[%clk 0:02:44.3]}
17. Nh6+ {[%clk 0:01:16.1]} 17... Kg7 {[%clk 0:02:44.4]} 18. Bg5 {[%clk
0:01:15.4]} 18... Nh5 {[%clk 0:02:36.6]} 19. Qf3 {[%clk 0:01:09.1]} 19... f6
{[%clk 0:02:29.5]} 20. Be3 {[%clk 0:00:58.6]} 20... Bxc4 {[%clk 0:02:23.6]} 21.
g4 {[%clk 0:00:53.8]} 21... Nf4 {[%clk 0:02:14.4]} 22. Bxf4 {[%clk 0:00:52.7]}
22... exf4 {[%clk 0:02:14.1]} 23. Qxf4 {[%clk 0:00:52.9]} 23... Qe7 {[%clk
0:02:07.6]} 24. Bc2 {[%clk 0:00:27.3]} 24... Qe5 {[%clk 0:02:04]} 25. Qe3 {[%clk
0:00:21.9]} 25... Qg5 {[%clk 0:02:00.3]} 26. Qf3 {[%clk 0:00:19.5]} 0-1

[Event "*** Titled Tuesday Blitz"]
[Site "Chess.com"]
[Date "2021.03.16"]
[Round "4"]
[White "Piacramling"]
[Black "PavelShkapenko"]
[Result "0-1"]
[WhiteElo "2324"]
[BlackElo "2690"]
[TimeControl "180+1"]
[EndTime "10:36:12 PDT"]
[Termination "PavelShkapenko won by resignation"]

1. d4 {[%clk 0:03:00.9]} 1... Nf6 {[%clk 0:02:59.1]} 2. c4 {[%clk 0:02:59.9]}
2... e6 {[%clk 0:02:59.2]} 3. Nc3 {[%clk 0:02:58.4]} 3... Bb4 {[%clk 0:02:59.6]}
4. e3 {[%clk 0:02:58.6]} 4... c5 {[%clk 0:02:59.4]} 5. Ne2 {[%clk 0:02:55.5]}
5... cxd4 {[%clk 0:02:58.9]} 6. exd4 {[%clk 0:02:54.8]} 6... O-O {[%clk
0:02:56.3]} 7. a3 {[%clk 0:02:53.3]} 7... Be7 {[%clk 0:02:56.7]} 8. Nf4 {[%clk
0:02:49.9]} 8... d6 {[%clk 0:02:56.6]} 9. Be2 {[%clk 0:02:43.2]} 9... e5 {[%clk
0:02:56.6]} 10. dxe5 {[%clk 0:02:39.2]} 10... dxe5 {[%clk 0:02:57.5]} 11. Nfd5
{[%clk 0:02:39.2]} 11... Nxd5 {[%clk 0:02:57.2]} 12. Nxd5 {[%clk 0:02:38.9]}
12... Nc6 {[%clk 0:02:57.5]} 13. Be3 {[%clk 0:02:38]} 13... Bg5 {[%clk
0:02:57.5]} 14. O-O {[%clk 0:02:28.4]} 14... Be6 {[%clk 0:02:57]} 15. Qd2 {[%clk
0:02:15.4]} 15... Bxe3 {[%clk 0:02:46.6]} 16. fxe3 {[%clk 0:02:14.9]} 16... Qg5
{[%clk 0:02:33.4]} 17. Rad1 {[%clk 0:02:10.7]} 17... Rad8 {[%clk 0:02:31.8]} 18.
Qc3 {[%clk 0:01:57.9]} 18... Bxd5 {[%clk 0:02:22.3]} 19. cxd5 {[%clk 0:01:48.7]}
19... Ne7 {[%clk 0:02:22.3]} 20. e4 {[%clk 0:01:46]} 20... Nc8 {[%clk
0:02:20.5]} 21. Rf5 {[%clk 0:01:35.5]} 21... Qg6 {[%clk 0:02:20.4]} 22. Rxe5
{[%clk 0:01:26.1]} 22... Nd6 {[%clk 0:02:19.7]} 23. Bf3 {[%clk 0:01:24.1]} 23...
Rc8 {[%clk 0:02:14.9]} 24. Qd3 {[%clk 0:00:47.1]} 24... Nc4 {[%clk 0:02:01.1]}
25. Re7 {[%clk 0:00:25.2]} 25... Nxb2 {[%clk 0:01:59.6]} 26. Qb3 {[%clk
0:00:21.1]} 26... Nxd1 {[%clk 0:01:59.5]} 27. Qxd1 {[%clk 0:00:20.7]} 27... Qg5
{[%clk 0:01:51.8]} 0-1